lending/lending_fUSD_20250621
["ID","MTS","AMOUNT","RATE_DAILY","PERIOD"]
[366813442,1750468243155,-490.0,0.00025203,4]
[366813443,1750468243165,-490.0,0.00025203,4]
[366813444,1750468243175,-490.0,0.00025203,4]
[366813445,1750468243185,-579.51,0.00025203,4]
[366813446,1750468243195,-490.0,0.00025203,4]
[366813447,1750468243205,-490.0,0.00025203,4]
[366813448,1750468243215,-490.0,0.00025203,4]
[366813449,1750468243225,-169.65968131,0.00025203,4]
[366813450,1750468243235,-490.0,0.00025203,4]
[366813451,1750468243245,-490.0,0.00025203,4]
[366813452,1750468243254,-490.0,0.00025203,4]
[366813453,1750468243264,-490.0,0.00025203,4]
[366813454,1750468243273,-490.0,0.00025203,4]
[366813455,1750468243283,-187.88026023,0.00025203,4]
[366813456,1750468243293,-490.0,0.00025203,4]
[366813457,1750468243303,-490.0,0.00025203,4]
[366813458,1750468243312,-490.0,0.00025203,4]
[366813459,1750468243322,-490.0,0.00025203,4]
[366813460,1750468243332,-490.0,0.00025203,4]
[366813461,1750468243342,-492.95,0.00025203,4]
[366813462,1750468243353,-517.98,0.00025203,4]
[366813463,1750468243362,-490.0,0.00025203,4]
[366813464,1750468243372,-334.68400042,0.00025203,4]
[366813465,1750468243382,-490.0,0.00025203,4]
[366813466,1750468243391,-210.0,0.00025203,4]
[366813467,1750468243402,-490.0,0.00025203,4]
[366813468,1750468243412,-490.0,0.00025203,4]
[366813469,1750468243422,-433.53374047,0.00025203,4]
[366813470,1750468243431,-490.0,0.00025203,4]
[366813471,1750468243441,-490.0,0.00025203,4]
[366813472,1750468243451,-199.92496644,0.00025203,4]
[366813473,1750468243460,-848.74,0.00025203,4]
[366813474,1750468243470,-490.0,0.00025205,4]
[366813475,1750468243480,-490.0,0.00025205,4]
[366813476,1750468243490,-196.06391954,0.00025205,4]
[366813477,1750468243501,-490.0,0.00025205,4]
[366813478,1750468243510,-490.0,0.00025205,4]
[366813479,1750468243520,-490.0,0.00025205,4]
[366813480,1750468243530,-436.55878125,0.00025205,4]
[366813481,1750468243540,-490.0,0.00025205,4]
[366813482,1750468243550,-404.23,0.00025205,4]
[366813483,1750468243560,-490.0,0.00025205,4]
[366813484,1750468243570,-490.0,0.00025205,4]
[366813485,1750468243579,-490.0,0.00025205,4]
[366813486,1750468243590,-490.0,0.00025205,4]
[366813487,1750468243599,-490.0,0.00025205,4]
[366813488,1750468243609,-490.0,0.00025205,4]
[366813489,1750468243619,-490.0,0.00025205,4]
[366813490,1750468243629,-490.0,0.00025205,4]
[366813491,1750468243638,-490.0,0.00025205,4]
[366813492,1750468243648,-490.0,0.00025205,4]
[366813493,1750468243658,-171.41721427,0.00025205,4]
[366813494,1750468243668,-161.4570199,0.00025205,4]
[366813495,1750468243680,-625.43,0.00025205,4]
[366813496,1750468243690,-490.0,0.00025205,4]
[366813497,1750468243704,-490.0,0.00025205,4]
[366813498,1750468243714,-490.0,0.00025205,4]
[366813499,1750468243725,-490.0,0.00025205,4]
[366813500,1750468243735,-490.0,0.00025205,4]
[366813501,1750468243744,-490.0,0.00025205,4]
[366813502,1750468243756,-187.68060427,0.00025273,2]
[366813503,1750468243766,-226.65068024,0.00025301,2]
[366813504,1750468243776,-5635.25024794,0.00025359,3]
[366813505,1750468243786,-1089.73072467,0.00025383,13]
[366813506,1750468243795,-4094.0,0.00025415,2]
[366813507,1750468243805,-7133.0,0.00025415,2]
[366813508,1750468243815,-855.0,0.00025415,2]
[366813509,1750468243825,-156.0,0.00025415,2]
[366813510,1750468243834,-168.0,0.00025418,2]
[366813511,1750468243844,-250.0,0.00025428,2]
[366813512,1750468243855,-5635.25024794,0.00025457,3]
[366813513,1750468243865,-151.0,0.00025457,2]
[366813514,1750468243874,-245.0,0.00025457,2]
[366813515,1750468243884,-5635.25024794,0.00025458,3]
[366813516,1750468243894,-11270.5004959,0.00025459,3]
[366813517,1750468243903,-33811.5014876,0.00025467,3]
[366813518,1750468243914,-834.11677829,0.00025467,3]
[366813519,1750468243924,-5635.25024794,0.00025468,3]
[366813520,1750468243934,-11270.5004959,0.00025469,3]
[366813521,1750468243943,-500.0,0.00025473,2]
[366813522,1750468243953,-490.0,0.00025476,4]
[366813523,1750468243963,-490.0,0.00025476,4]
[366813524,1750468243973,-490.0,0.00025476,4]
[366813525,1750468243982,-490.0,0.00025476,4]
[366813526,1750468243992,-490.0,0.00025476,4]
[366813527,1750468244001,-490.0,0.00025476,4]
[366813528,1750468244011,-490.0,0.00025476,4]
[366813529,1750468244020,-697.77,0.00025476,4]
[366813530,1750468244031,-490.0,0.00025476,4]
[366813531,1750468244041,-490.0,0.00025476,4]
[366813532,1750468244052,-589.8,0.00025476,4]
[366813533,1750468244063,-490.0,0.00025476,4]
[366813534,1750468244073,-490.0,0.00025476,4]
[366813535,1750468244083,-490.0,0.00025476,4]
[366813536,1750468244093,-709.79,0.00025476,2]
[366813537,1750468244104,-490.0,0.00025477,4]
[366813538,1750468244114,-490.0,0.00025477,4]
[366813539,1750468244123,-231.65,0.00025477,4]
[366813540,1750468244133,-178.62559265,0.00025477,4]
[366813541,1750468244143,-490.0,0.00025477,4]
[366813542,1750468244152,-366.54205374,0.00025477,4]
[366813543,1750468244162,-153.90043579,0.00025477,4]
[366813544,1750468244172,-490.0,0.00025477,4]
[366813545,1750468244182,-490.0,0.00025477,4]
[366813546,1750468244192,-490.0,0.00025477,4]
[366813547,1750468244201,-490.0,0.00025477,4]
[366813548,1750468244211,-390.52,0.00025477,4]
[366813549,1750468244221,-553.14610095,0.00025477,4]
[366813550,1750468244230,-512.7,0.00025477,4]
[366813551,1750468244241,-490.0,0.00025477,4]
[366813552,1750468244250,-490.0,0.00025477,4]
[366813553,1750468244260,-490.0,0.00025477,4]
[366813554,1750468244270,-380.55,0.00025477,4]
[366813555,1750468244279,-490.0,0.00025477,4]
[366813556,1750468244289,-490.0,0.00025477,4]
[366813557,1750468244299,-490.0,0.00025477,4]
[366813558,1750468244309,-490.0,0.00025477,4]
[366813559,1750468244319,-490.0,0.00025477,4]
[366813560,1750468244329,-490.0,0.00025477,4]
[366813561,1750468244339,-490.0,0.00025477,4]
[366813562,1750468244348,-343.7633411,0.00025477,4]
[366813563,1750468244358,-216.46,0.00025477,4]
[366813564,1750468244368,-467.29,0.00025477,4]
[366813565,1750468244378,-490.0,0.00025477,4]
[366813566,1750468244388,-490.0,0.00025477,4]
[366813567,1750468244397,-490.0,0.00025477,4]
[366813568,1750468244407,-490.0,0.00025477,4]
[366813569,1750468244417,-490.0,0.00025477,4]
[366813570,1750468244426,-490.0,0.00025477,4]
[366813571,1750468244436,-490.0,0.00025477,4]
[366813572,1750468244445,-490.0,0.00025477,4]
[366813573,1750468244456,-490.0,0.00025477,4]
[366813574,1750468244466,-490.0,0.00025477,4]
[366813575,1750468244476,-490.0,0.00025477,4]
[366813576,1750468244486,-1124.95,0.00025477,4]
[366813577,1750468244495,-490.0,0.00025477,4]
[366813578,1750468244505,-490.0,0.00025477,4]
[366813579,1750468244515,-490.0,0.00025477,4]
[366813580,1750468244525,-490.0,0.00025477,4]
[366813581,1750468244535,-1452.06,0.00025477,4]
[366813582,1750468244544,-490.0,0.00025477,4]
[366813583,1750468244554,-441.10076228,0.00025477,4]
[366813584,1750468244563,-227.7795231,0.00025477,4]
[366813585,1750468244572,-490.0,0.00025477,4]
[366813586,1750468244582,-490.0,0.00025477,4]
[366813587,1750468244592,-504.8,0.00025477,4]
[366813588,1750468244602,-928.78,0.00025477,4]
[366813589,1750468244611,-490.0,0.00025477,4]
[366813590,1750468244621,-490.0,0.00025477,4]
[366813591,1750468244630,-490.0,0.00025477,4]
[366813592,1750468244641,-1765.71,0.00025477,4]
[366813593,1750468244651,-490.0,0.00025477,4]
[366813594,1750468244662,-490.0,0.00025477,4]
[366813595,1750468244672,-970.4,0.00025477,4]
[366813596,1750468244686,-490.0,0.00025477,4]
[366813597,1750468244696,-490.0,0.00025477,4]
[366813598,1750468244706,-547.31,0.00025477,4]
[366813599,1750468244716,-490.0,0.00025477,4]
[366813600,1750468244727,-880.53,0.00025477,4]
[366813601,1750468244738,-490.0,0.00025477,4]
[366813602,1750468244748,-173.56306683,0.00025477,4]
[366813603,1750468244759,-490.0,0.00025477,4]
[366813604,1750468244769,-490.0,0.00025477,4]
[366813605,1750468244779,-490.0,0.00025477,4]
[366813606,1750468244789,-423.52,0.00025477,4]
[366813607,1750468244799,-490.0,0.00025477,4]
[366813608,1750468244808,-490.0,0.00025477,4]
[366813609,1750468244819,-490.0,0.00025477,4]
[366813610,1750468244829,-490.0,0.00025477,4]
[366813611,1750468244839,-490.0,0.00025477,4]
[366813612,1750468244849,-818.3,0.00025477,4]
[366813613,1750468244859,-490.0,0.00025477,4]
[366813614,1750468244869,-490.0,0.00025477,4]
[366813615,1750468244879,-490.0,0.00025477,4]
[366813616,1750468244889,-490.0,0.00025477,4]
[366813617,1750468244899,-313.98307463,0.00025477,4]
[366813618,1750468244908,-510.96,0.00025477,4]
[366813619,1750468244919,-490.0,0.00025477,4]
[366813620,1750468244928,-490.0,0.00025477,4]
[366813621,1750468244938,-490.0,0.00025477,4]
[366813622,1750468244948,-490.0,0.00025477,4]
[366813623,1750468244958,-672.13,0.00025477,4]
[366813624,1750468244968,-490.0,0.00025477,4]
[366813625,1750468244979,-490.0,0.00025477,4]
[366813626,1750468244989,-490.0,0.00025477,4]
[366813627,1750468244999,-3135.68,0.00025477,4]
[366813628,1750468245009,-490.0,0.00025477,4]
[366813629,1750468245019,-490.0,0.00025477,4]
[366813630,1750468245029,-490.0,0.00025477,4]
[366813631,1750468245039,-490.0,0.00025477,4]
[366813632,1750468245049,-592.82,0.00025477,4]
[366813633,1750468245059,-530.32,0.00025477,4]
[366813634,1750468245069,-490.0,0.00025477,4]
[366813635,1750468245080,-490.0,0.00025477,4]
[366813636,1750468245091,-490.0,0.00025477,4]
[366813637,1750468245102,-490.0,0.00025477,4]
[366813638,1750468245112,-490.0,0.00025477,4]
[366813639,1750468245122,-752.76,0.00025477,4]
[366813640,1750468245133,-490.0,0.00025477,4]
[366813641,1750468245143,-490.0,0.00025477,4]
[366813642,1750468245153,-490.0,0.00025477,4]
[366813643,1750468245165,-490.0,0.00025477,4]
[366813644,1750468245174,-490.0,0.00025477,4]
[366813645,1750468245184,-490.0,0.00025477,4]
[366813647,1750468245374,-490.0,0.00025477,4]
[366813648,1750468245386,-490.0,0.00025477,4]
[366813649,1750468245397,-490.0,0.00025477,4]
[366813650,1750468245407,-490.0,0.00025477,4]
[366813651,1750468245417,-579.89,0.00025477,4]
[366813652,1750468245428,-490.0,0.00025477,4]
[366813653,1750468245440,-1568.14,0.00025477,4]
[366813654,1750468245450,-490.0,0.00025477,4]
[366813655,1750468245460,-490.0,0.00025477,4]
[366813656,1750468245470,-490.0,0.00025477,4]
[366813657,1750468245480,-490.0,0.00025477,4]
[366813658,1750468245489,-318.06,0.00025477,4]
[366813659,1750468245499,-490.0,0.00025477,4]
[366813660,1750468245514,-490.0,0.00025477,4]
[366813661,1750468245524,-490.0,0.00025477,4]
[366813662,1750468245534,-777.62,0.00025477,4]
[366813663,1750468245544,-537.17,0.00025477,4]
[366813664,1750468245554,-490.0,0.00025477,4]
[366813665,1750468245564,-490.0,0.00025477,4]
[366813666,1750468245574,-551.39,0.00025477,4]
[366813667,1750468245584,-1387.81,0.00025477,2]
[366813668,1750468245594,-490.0,0.00025477,4]
[366813669,1750468245606,-490.0,0.00025477,4]
[366813670,1750468245616,-490.0,0.00025477,4]
[366813671,1750468245626,-490.0,0.00025477,4]
[366813672,1750468245636,-490.0,0.00025477,4]
[366813673,1750468245647,-579.51,0.00025477,4]
[366813674,1750468245656,-490.0,0.00025477,4]
[366813675,1750468245666,-490.0,0.00025477,4]
[366813676,1750468245677,-490.0,0.00025477,4]
[366813677,1750468245688,-490.0,0.00025477,4]
[366813678,1750468245698,-490.0,0.00025477,4]
[366813679,1750468245708,-490.0,0.00025477,4]
[366813680,1750468245718,-490.0,0.00025477,4]
[366813681,1750468245730,-492.95,0.00025477,4]
[366813682,1750468245740,-490.0,0.00025477,4]
[366813683,1750468245752,-495.64088137,0.00025477,4]
[366813684,1750468245762,-490.0,0.00025477,4]
[366813685,1750468245772,-490.0,0.00025477,4]
[366813686,1750468245782,-490.0,0.00025477,4]
[366813687,1750468245792,-848.74,0.00025477,4]
[366813688,1750468245803,-490.0,0.00025478,4]
[366813689,1750468245813,-490.0,0.00025479,4]
[366813690,1750468245823,-490.0,0.00025479,4]
[366813691,1750468245834,-490.0,0.00025479,4]
[366813692,1750468245845,-490.0,0.00025479,4]
[366813693,1750468245856,-490.0,0.00025479,4]
[366813694,1750468245866,-490.0,0.00025479,4]
[366813695,1750468245876,-490.0,0.00025479,4]
[366813696,1750468245886,-490.0,0.00025479,4]
[366813697,1750468245896,-490.0,0.00025479,4]
[366813698,1750468245906,-490.0,0.00025479,4]
[366813699,1750468245916,-490.0,0.00025479,4]
[366813700,1750468245926,-196.38874248,0.00025479,4]
[366813701,1750468245936,-490.0,0.00025479,4]
[366813702,1750468245945,-490.0,0.00025479,4]
[366813703,1750468245956,-490.0,0.00025479,4]
[366813704,1750468245966,-490.0,0.00025479,4]
[366813705,1750468245976,-625.43,0.00025479,4]
[366813706,1750468245986,-490.0,0.00025479,4]
[366813707,1750468245996,-490.0,0.00025479,4]
[366813708,1750468246005,-490.0,0.00025479,4]
[366813709,1750468246015,-490.0,0.00025479,4]
[366813710,1750468246024,-490.0,0.00025479,4]
[366813711,1750468246033,-490.0,0.00025479,4]
[366813712,1750468246044,-2000.0,0.000255,2]
[366813713,1750468246054,-168.0,0.00025517,2]
[366813714,1750468246065,-168.0,0.00025615,2]
[366813715,1750468246075,-150.0,0.00025675,2]
[366813716,1750468246086,-5635.25024794,0.00025731,3]
[366813717,1750468246096,-5635.25024794,0.00025732,3]
[366813718,1750468246106,-11270.5004959,0.00025733,3]
[366813719,1750468246116,-28176.2512397,0.00025741,3]
[366813720,1750468246126,-2774.9111044,0.00025741,3]
[366813721,1750468246136,-500.0,0.00025742,2]
[366813722,1750468246146,-5635.25024794,0.00025742,3]
[366813723,1750468246157,-2774.9111044,0.00025742,3]
[366813724,1750468246167,-3473.19004926,0.00025743,3]
[366813725,1750468246395,-7797.31044664,0.00025743,3]
[366813726,1750468246406,-2774.9111044,0.00025743,3]
[366813727,1750468246416,-490.0,0.0002575,4]
[366813728,1750468246426,-490.0,0.0002575,4]
[366813729,1750468246436,-490.0,0.0002575,4]
[366813730,1750468246446,-490.0,0.0002575,4]
[366813731,1750468246456,-490.0,0.0002575,4]
[366813732,1750468246467,-490.0,0.0002575,4]
[366813733,1750468246477,-490.0,0.0002575,4]
[366813734,1750468246488,-697.77,0.0002575,4]
[366813735,1750468246498,-490.0,0.0002575,4]
[366813736,1750468246508,-490.0,0.0002575,4]
[366813737,1750468246518,-589.8,0.0002575,4]
[366813738,1750468246528,-490.0,0.0002575,4]
[366813739,1750468246537,-490.0,0.0002575,4]
[366813740,1750468246547,-490.0,0.0002575,4]
[366813741,1750468246558,-709.79,0.0002575,2]
[366813742,1750468246568,-490.0,0.00025751,4]
[366813743,1750468246579,-490.0,0.00025751,4]
[366813744,1750468246588,-490.0,0.00025751,4]
[366813745,1750468246599,-490.0,0.00025751,4]
[366813746,1750468246608,-490.0,0.00025751,4]
[366813747,1750468246618,-132.41844896,0.00025751,4]
[366813748,1750468246640,-191.63354452,0.00025751,4]
[366813749,1750468246650,-297.73575563,0.00025751,4]
[366813750,1750468246663,-192.26424437,0.00025751,4]
[366813751,1750468246676,-87.98075555,0.00025751,4]
[366813752,1750468246797,202.0,0.00021921,2]
[366813753,1750468246871,-4151.84,0.00025203,4]
[366813754,1750468246881,-885.0,0.00025415,2]
[366813755,1750468246891,-2597.16,0.00025477,4]
[366813756,1750468247205,-490.0,0.00025202,4]
[366813757,1750468247216,-490.0,0.00025203,4]
[366813758,1750468247226,-490.0,0.00025203,4]
[366813759,1750468247237,-1554.68,0.00025477,4]
[366813760,1750468247247,-490.0,0.00025477,4]
[366813761,1750468247257,-630.60708401,0.00025477,4]
[366813762,1750468247267,-402.01924445,0.00025751,4]
[366813763,1750468247278,-490.0,0.00025751,4]
[366813764,1750468247288,-355.77208077,0.00025751,4]
[366813765,1750468247299,-490.0,0.00025751,4]
[366813766,1750468247308,-490.0,0.00025751,4]
[366813767,1750468247319,-490.0,0.00025751,4]
[366813768,1750468247329,-490.0,0.00025751,4]
[366813769,1750468247339,-490.0,0.00025751,4]
[366813770,1750468247348,-490.0,0.00025751,4]
[366813771,1750468247359,-384.89393973,0.00025751,4]
[366813772,1750468247371,-105.10606027,0.00025751,4]
[366813773,1750468247381,-490.0,0.00025751,4]
[366813774,1750468247390,-490.0,0.00025751,4]
[366813775,1750468247400,-490.0,0.00025751,4]
[366813776,1750468247410,-490.0,0.00025751,4]
[366813777,1750468247420,-490.0,0.00025751,4]
[366813778,1750468247431,-52.02632015,0.00025751,4]
[366813779,1750468247443,-437.97367985,0.00025751,4]
[366813780,1750468247453,-490.0,0.00025751,4]
[366813781,1750468247463,-490.0,0.00025751,4]
[366813782,1750468247473,-490.0,0.00025751,4]
[366813783,1750468247483,-490.0,0.00025751,4]
[366813784,1750468247493,-1124.95,0.00025751,4]
[366813785,1750468247505,-490.0,0.00025751,4]
[366813786,1750468247518,-436.55030799,0.00025751,4]
[366813787,1750468247528,-490.0,0.00025751,4]
[366813788,1750468247538,-490.0,0.00025751,4]
[366813789,1750468247562,-697.50287547,0.00025751,4]
[366813790,1750468247588,-485.62946399,0.00025751,4]
[366813791,1750468247610,-268.92766054,0.00025751,4]
[366813792,1750468247620,-490.0,0.00025751,4]
[366813793,1750468247630,-490.0,0.00025751,4]
[366813794,1750468247641,-490.0,0.00025751,4]
[366813795,1750468247651,-504.8,0.00025751,4]
[366813796,1750468247661,-928.78,0.00025751,4]
[366813797,1750468247671,-490.0,0.00025751,4]
[366813798,1750468247686,-490.0,0.00025751,4]
[366813799,1750468247696,-276.98423272,0.00025751,4]
[366813800,1750468247709,-213.01576728,0.00025751,4]
[366813801,1750468247720,-1765.71,0.00025751,4]
[366813802,1750468247842,-490.0,0.00025751,4]
[366813803,1750468247852,-490.0,0.00025751,4]
[366813804,1750468247862,-623.25307032,0.00025751,4]
[366813805,1750468298223,250.0,0.00015,2]
[366813806,1750468391786,201.0,0.00021921,2]
[366813809,1750468517519,151.0,0.00021921,2]
[366813810,1750468518932,252.14135268,0.00021921,2]
[366813812,1750468585958,199.61,0.00013699,2]
[366813813,1750468586160,199.61,0.00020187,2]
[366813814,1750468722742,253.40727088,0.00021687,2]
[366813815,1750468723963,315.0,0.00021087,2]
[366813816,1750468724927,285.0,0.00021687,5]
[366813817,1750468726122,217.15526885,0.00021087,2]
[366813818,1750468727314,196.47381468,0.00021687,5]
[366813819,1750468735677,270.95274608,0.000247,120]
[366813821,1750468908320,187.07,0.00016712,2]
[366813836,1750469405923,-164.44591854,0.00022115,2]
[366813837,1750469405953,-90.43595821,0.00022115,2]
[366813838,1750469407523,-190.49068028,0.00022115,2]
[366813839,1750469409208,-19.07336151,0.00022115,2]
[366813840,1750469409234,-187.84,0.00022115,2]
[366813853,1750469431764,-250.0,0.00022668,2]
[366813854,1750469431775,-205.0,0.0002286,2]
[366813855,1750469431786,-168.0,0.0002322,2]
[366813856,1750469431797,-145.7,0.00023551,2]
[366813857,1750469431809,-1157.16140376,0.00023551,2]
[366813858,1750469431823,-634.93992459,0.00023551,2]
[366813859,1750469431837,-585.83867165,0.00023551,2]
[366813860,1750469431848,-185.5901678,0.0002356,2]
[366813861,1750469431880,-814.4098322,0.0002356,2]
[366813862,1750469431895,-407.08,0.00023563,2]
[366813864,1750469432176,-444.4,0.00023586,2]
[366813865,1750469432189,-168.0,0.00023963,2]
[366813866,1750469432200,-1200.0,0.00023999,2]
[366813867,1750469432210,-4190.584958,0.00024,5]
[366813868,1750469432220,-214.61,0.00024025,2]
[366813869,1750469432230,-261.0,0.0002403,2]
[366813871,1750469432240,-300.0,0.0002403,2]
[366813872,1750469432250,-214.61,0.00024031,2]
[366813873,1750469432260,-214.61,0.00024038,2]
[366813874,1750469432271,-250.0,0.00024042,2]
[366813875,1750469432281,-214.61,0.00024044,2]
[366813876,1750469432292,-214.61,0.0002405,2]
[366813877,1750469432302,-214.61,0.00024057,2]
[366813878,1750469432312,-214.61,0.00024063,2]
[366813879,1750469432322,-2751.0,0.00024063,2]
[366813880,1750469432332,-214.61,0.00024069,2]
[366813881,1750469432341,-214.61,0.00024076,2]
[366813882,1750469432351,-214.61,0.00024082,2]
[366813883,1750469432360,-214.61,0.00024088,2]
[366813884,1750469432371,-330.43,0.00024093,2]
[366813885,1750469432381,-214.61,0.00024095,2]
[366813886,1750469432391,-214.61,0.00024101,2]
[366813887,1750469432402,-214.61,0.00024107,2]
[366813888,1750469432412,-214.61,0.00024114,2]
[366813889,1750469432423,-214.61,0.0002412,2]
[366813890,1750469432433,-214.61,0.00024126,2]
[366813891,1750469432444,-117.15758238,0.00024133,2]
[366813892,1750469432466,-97.45241762,0.00024133,2]
[366813893,1750469432476,-214.61,0.00024139,2]
[366813894,1750469432487,-214.61,0.00024145,2]
[366813895,1750469432498,-205.0,0.00024186,4]
[366813896,1750469432508,-1957.856,0.00024308,2]
[366813897,1750469432518,-207.4,0.00024308,2]
[366813898,1750469432528,-3124.64,0.00024323,2]
[366813899,1750469432538,-150.99,0.00024323,2]
[366813900,1750469432548,-150.99,0.00024323,2]
[366813901,1750469432558,-999.99,0.00024323,2]
[366813902,1750469432568,-275.04,0.00024323,2]
[366813903,1750469432578,-4539.7,0.00024324,2]
[366813904,1750469432588,-600.0,0.00024326,4]
[366813905,1750469432599,-300.0,0.00024326,2]
[366813906,1750469432609,-300.0,0.00024326,2]
[366813907,1750469432620,-250.0,0.00024326,2]
[366813908,1750469432631,-250.0,0.00024326,2]
[366813909,1750469432642,-2030.296672,0.00024363,2]
[366813910,1750469432652,-666.0,0.00024413,2]
[366813911,1750469432664,-2105.41764886,0.00024418,2]
[366813912,1750469432674,-2183.31810187,0.00024473,2]
[366813913,1750469432685,-2264.10087164,0.00024528,2]
[366813914,1750469432695,-126.07077184,0.0002458,2]
[366813915,1750469432711,-1573.17100973,0.0002458,2]
[366813922,1750469432817,-395.89487242,0.0002458,2]
[366813924,1750469437608,-286.07,0.00023529,2]
[366813925,1750469437631,-198.43,0.00023992,2]
[366813926,1750469437643,-515.5029746,0.0002458,2]
[366813939,1750469439875,-3076.46927792,0.0002458,2]
[366813940,1750469439885,-1651.61112835,0.00024583,2]
[366813941,1750469439896,-286.54,0.0002461,2]
[366813942,1750469439906,-1000.0,0.00024658,2]
[366813943,1750469439918,-151.0,0.00024816,2]
[366813944,1750469439928,-668.65185757,0.00024816,2]
[366813945,1750469439944,-500.0,0.00024816,2]
[366813946,1750469440060,-497.44248795,0.00024816,2]
[366813947,1750469440071,-151.0,0.00024816,2]
[366813948,1750469440081,-151.0,0.00024816,2]
[366813949,1750469440091,-151.0,0.00024816,2]
[366813950,1750469440101,-151.0,0.00024816,2]
[366813951,1750469440111,-225.0,0.00024816,2]
[366813952,1750469440121,-8973.6882,0.00024831,2]
[366813953,1750469440131,-1236.45322897,0.000249,12]
[366813954,1750469440141,-200.0,0.00025,4]
[366813955,1750469440151,-1705.2225,0.00025103,2]
[366813956,1750469440161,-746.82198449,0.00025109,2]
[366813957,1750469440171,-3382.66517358,0.00025192,2]
[366813958,1750469440181,-490.0,0.00025202,4]
[366813959,1750469440191,-311.60138654,0.00025202,4]
[366813960,1750469440201,-490.0,0.00025202,4]
[366813961,1750469440210,-490.0,0.00025202,4]
[366813962,1750469440220,-490.0,0.00025202,4]
[366813963,1750469440230,-500.0,0.00025202,4]
[366813964,1750469440240,-490.0,0.00025202,4]
[366813965,1750469440250,-280.0,0.00025202,4]
[366813966,1750469440261,-490.0,0.00025202,4]
[366813967,1750469440271,-490.0,0.00025202,4]
[366813968,1750469440282,-490.0,0.00025202,4]
[366813969,1750469440292,-490.0,0.00025202,4]
[366813970,1750469440302,-490.0,0.00025202,4]
[366813971,1750469440312,-490.0,0.00025202,4]
[366813972,1750469440322,-490.0,0.00025202,4]
[366813973,1750469440332,-490.0,0.00025202,4]
[366813974,1750469440342,-490.0,0.00025202,4]
[366813975,1750469440358,-490.0,0.00025202,4]
[366813976,1750469440368,-490.0,0.00025202,4]
[366813977,1750469440377,-490.0,0.00025202,4]
[366813978,1750469440387,-586.57,0.00025202,4]
[366813979,1750469440396,-490.0,0.00025202,4]
[366813980,1750469440406,-490.0,0.00025202,4]
[366813981,1750469440416,-490.0,0.00025202,4]
[366813982,1750469440427,-490.0,0.00025202,4]
[366813983,1750469440437,-490.0,0.00025202,4]
[366813984,1750469440447,-490.0,0.00025202,4]
[366813985,1750469440457,-490.0,0.00025202,4]
[366813986,1750469440468,-490.0,0.00025202,4]
[366813987,1750469440479,-490.0,0.00025202,4]
[366813988,1750469440489,-150.0,0.00025202,4]
[366813989,1750469440499,-490.0,0.00025203,4]
[366813990,1750469440510,-490.0,0.00025203,4]
[366813991,1750469440520,-746.8219845,0.00025216,2]
[366813992,1750469440530,-150.0,0.00025229,4]
[366813993,1750469440540,-7135.0,0.00025318,2]